Cogmind - Beta 13 @@@ ROGUE MODE // 2024.03.31 @ 21:12:16 Player: ZO2D2 Result: Destroyed by G-34 Mercenary with Small Laser Performance ------------- Evolutions (0) 0 Regions Visited (1) 200 Robots Destroyed (8) 40 Value Destroyed (285) 285 Prototype IDs (0) 0 Alien Tech Used (0) 0 Bonus (0) 0 TOTAL SCORE: 525 Bonus ------- None Cogmind --------- Core Integrity 0/250 Matter 252/300 Energy 250/250 System Corruption 0% Temperature Cool (6) Movement Treading (160) Location -10/Materials Parts ------- > --- POWER (1) -------- Ion Engine > --- PROPULSION (2) --- Light Treads Light Treads > --- UTILITY (2) ------ Large Storage Unit Targeting Computer > --- WEAPON (2) ------- Assault Rifle > --- INVENTORY (15) --- Ion Engine Large Storage Unit Small Laser Peak State ------------ > --- POWER ------------ Ion Engine > --- PROPULSION ------- Aluminum Leg Aluminum Leg > --- UTILITY ---------- Large Storage Unit Targeting Computer > --- WEAPON ----------- Light Assault Rifle Light Assault Rifle > --- INVENTORY -------- Ion Engine Light Treads Light Treads Large Storage Unit Small Laser Assault Rifle [Rating: 7] Favorites ----------- Power Ion Engine Engine Ion Engine Propulsion Aluminum Leg Treads Light Treads Leg Aluminum Leg Utility Large Storage Unit Storage Large Storage Unit Processor Targeting Computer Weapon Light Assault Rifle Ballistic Gun Light Assault Rifle Build | -11 -10 ------- Run | Yrd Mat Slots Evolved . | . . Power . | . . Propulsion . | . . Utility . | . . Weapon . | . . Parts Attached 13 | 6 7 Power 2 | 1 1 Engine 2 | 1 1 Core . | . . Reactor . | . . Propulsion 5 | 2 3 Treads 2 | . 2 Leg 3 | 2 1 Wheel . | . . Hover . | . . Flight . | . . Utility 3 | 1 2 Device . | . . Storage 2 | 1 1 Processor 1 | . 1 Hackware . | . . Protection . | . . Artifact . | . . Weapon 3 | 2 1 Energy Gun . | . . Energy Cannon . | . . Ballistic Gun 3 | 2 1 Ballistic Cannon . | . . Launcher . | . . Special Weapon . | . . Impact Weapon . | . . Slashing Weapon . | . . Piercing Weapon . | . . Special Melee Weapon . | . . Unidentified Prototypes . | . . Parts Lost 5 | . 5 Power 1 | . 1 Propulsion 2 | . 2 Utility . | . . Weapon 2 | . 2 Highest Loss Streak 4 | . 4 To Critical Strikes . | . . Average Slot Usage (%) 90 | . 90 Engine 13 | . 13 Treads 2 | . 2 Leg 23 | . 23 Storage 14 | . 14 Processor 9 | . 9 Ballistic Gun 26 | . 26 Naked Turns . | . . Heaviest Build 28 | 12 28 Greatest Support 40 | 20 40 Greatest Overweight (x) 2 | . 2 Average Overweight (x) . | . . Largest Inventory Capacity 15 | 8 15 Average Capacity 13 | 6 14 Most Carried 7 | 5 7 Average Carried 5 | 3 5 Final Capacity 15 | 8 15 Final Carried 4 | 4 3 Class Distribution -------------------- 100% | Mutant Dominant Class ---------------- Mutant | -10/Materials Resources | -11 -10 ----------- Run | Yrd Mat Matter Collected 390 | 202 188 Remotely . | . . Salvage Created 330 | . 330 Parts 21 | . 21 Haulers Intercepted . | . . Recyclers Shooed . | . . Parts Field Recycled . | . . Retrieved Matter . | . . Parts Self-Destructed . | . . Prevented . | . . Kills | -11 -10 ------- Run | Yrd Mat Combat Hostiles Destroyed 8 | . 8 Guns 8 | . 8 Classes Destroyed 1 | . 1 Grunt 8 | . 8 Best Kill Streak 2 | . 2 Combat Bots Only 2 | . 2 Max Kills in Single Turn 1 | . 1 Gunslinging . | . . Exploded . | . . Melee . | . . Uniques/NPCs Destroyed . | . . Combat | -11 -10 -------- Run | Yrd Mat Hostile Shots Fired 108 | . 108 Missed 26 | . 26 Damage Taken 990 | . 990 Core 250 | . 250 Absorbed by Shields . | . . Core Remaining (%) 100 | 100 . Volleys Fired 65 | . 65 Largest 2 | . 2 Hottest 40 | . 40 Shots Fired 107 | . 107 Gun 107 | . 107 Cannon . | . . Launcher . | . . Special . | . . Kinetic 107 | . 107 Thermal . | . . Explosive . | . . Electromagnetic . | . . Robot Hit Streak 11 | . 11 Robot Miss Streak 7 | . 7 Penetration Max . | . . Secondary Targets . | . . Shots Hit Robots 70 | . 70 Core Hits 33 | . 33 Critical Kills . | . . Critical Parts Destroyed 1 | . 1 Critical Strikes 1 | . 1 Destroy 1 | . 1 Melee Attacks . | . . Impact . | . . Slashing . | . . Piercing . | . . Sneak Attacks . | . . Combat Hostiles . | . . Follow-up Attacks . | . . Damage Inflicted 628 | . 628 Guns 624 | . 624 Cannons . | . . Explosions . | . . Melee . | . . Ramming 4 | . 4 Kinetic 624 | . 624 Thermal . | . . Explosive . | . . Electromagnetic . | . . Impact . | . . Slashing . | . . Piercing . | . . Highest Corruption . | . . Average Corruption . | . . Corruption Purged . | . . Corruption Blocked . | . . Overload Shots . | . . Overflow Damage . | . . Projectiles . | . . Explosions . | . . Melee . | . . Knockbacks . | . . Impact . | . . Kinetic . | . . Secondary . | . . Self-Inflicted Damage . | . . Shots . | . . Rammed . | . . Targets Rammed 2 | . 2 Kicked 2 | . 2 Crushed . | . . Highest Temperature 24 | . 24 Average Temperature 9 | . 9 Received Heat Transfer 561 | . 561 Siege Activations . | . . Robots Corrupted . | . . Combat Hostiles . | . . Parts Fried . | . . Impact Corruptions . | . . Robots Melted . | . . Combat Hostiles . | . . Parts Melted . | . . Heat Transferred . | . . Parts Sabotaged . | . . Parts Stolen . | . . Parts Stripped . | . . Power Chain Reactions . | . . Alert | -11 -10 ------- Run | Yrd Mat Peak Influence 160 | . 160 Initial . | . . Average 81 | . 93 Maximum Alert Level . | . . Low Security (%) 100 | 100 100 Level 1 . | . . Level 2 . | . . Level 3 . | . . Level 4 . | . . Level 5 . | . . High Security . | . . Max Security . | . . Squads Dispatched 2 | . 2 Investigation 1 | . 1 Extermination . | . . Reinforcement 1 | . 1 Assault . | . . Garrison . | . . Intercept . | . . Searches Triggered . | . . Construction Impeded . | . . Haulers Reinforced . | . . Active Scanning Responses . | . . Cargo Convoy Interrupts . | . . Stealth | -11 -10 --------- Run | Yrd Mat Distress Signals 1 | . 1 Communications Jammed . | . . Distress Signals . | . . Times Spotted 17 | . 17 Peak Tracking Total 5 | . 5 Tactical Retreats . | . . Traps | -11 -10 ------- Run | Yrd Mat Traps Triggered 1 | . 1 Indirectly . | . . Trap Hack Attempts . | . . Triggered . | . . Disarmed . | . . Reprogrammed . | . . Reused . | . . Traps Extracted . | . . Installed . | . . Triggered . | . . Machines | -11 -10 ---------- Run | Yrd Mat Machines Disabled . | . . Max in Single Turn . | . . Machines Repaired . | . . Machines Dismantled . | . . Machines Sabotaged . | . . Overloaded Fab Kills . | . . Hacking | -11 -10 --------- Run | Yrd Mat Machines Accessed 2 | . 2 Terminals 2 | . 2 Fabricators . | . . Repair Stations . | . . Recycling Units . | . . Scanalyzers . | . . Garrison Access . | . . Total Hacks 7 | . 7 Successful 6 | . 6 Failed 1 | . 1 Catastrophic . | . . Database Lockouts . | . . Manual . | . . Terminals 7 | . 7 Fabricators . | . . Repair Stations . | . . Recycling Units . | . . Scanalyzers . | . . Garrison Access . | . . Terminal Hacks 6 | . 6 Record 3 | . 3 Locate Traps 1 | . 1 Maintenance Status 1 | . 1 Investigation Status 1 | . 1 Fabricator Hacks . | . . Repair Station Hacks . | . . Recycling Unit Hacks . | . . Scanalyzer . | . . Garrison Access Hacks . | . . Unauthorized Hacks . | . . Terminals . | . . Fabricators . | . . Repair Stations . | . . Recycling Units . | . . Scanalyzers . | . . Garrison Access . | . . Data Cores Recovered . | . . Used . | . . Hacking Detections 2 | . 2 Full Trace Events 2 | . 2 Feedback Events . | . . Feedback Blocked . | . . Robot Schematics Acquired . | . . Robots Built . | . . Authchips . | . . Time . | . . Total Robot Build Rating . | . . Part Schematics Acquired . | . . Parts Built . | . . Authchips . | . . Time . | . . Total Part Build Rating . | . . Parts Repaired . | . . Time . | . . Parts Recycled . | . . Recycled Matter . | . . Retrieved Matter . | . . Retrieved Components . | . . Parts Scanalyzed . | . . Part Schematics Acquired . | . . Parts Damaged . | . . Bothacking | -11 -10 ------------ Run | Yrd Mat Used RIF Installer . | . . Robots Hacked . | . . Non-combat . | . . Combat . | . . Robot Hacks Applied . | . . Relay Couplers Released . | . . Fabnet Peak Effective % . | . . Robots Rewired . | . . Allies Hacked . | . . Hacks Repelled . | . . Allies | -11 -10 -------- Run | Yrd Mat Total Allies . | . . Largest Group . | . . Highest-Rated Group . | . . Highest-Rated Ally . | . . Total Orders . | . . Ally Attacks . | . . Total Damage . | . . Kills . | . . Allies Corrupted . | . . Allies Melted . | . . Intel | -11 -10 ------- Run | Yrd Mat Robot Analysis Total . | . . Derelict Logs Recovered . | . . Drone Launches . | . . Drone Recoveries . | . . Exploration | -11 -10 ------------- Run | Yrd Mat Turns Passed 431 | 52 379 Spaces Moved 154 | 40 114 Core 16 | 16 . Treads 1 | . 1 Legs 137 | 24 113 Wheels . | . . Hover . | . . Flight . | . . Fastest Speed 50 | 50 120 Average Speed 159 | 92 182 Slowest Speed 260 | 120 260 Overloaded Moves . | . . Propulsion Burnouts . | . . Robots Hopped . | . . Cave-ins Triggered . | . . Exploration Rate (%) 17 | 5 30 Regions Visited 1 Branch Regions . Pre-discovered Areas . | . . Known Exits Taken . | . . Unknown Exits Taken 1 | 1 . Scrap Searched . | . . Spaces Dug . | . . Terrain Destroyed . | . . Melee . | . . Projectile . | . . AOE . | . . Terrain Rammed . | . . Walls Destroyed . | . . Machines Disabled . | . . Actions | -11 -10 --------- Run | Yrd Mat Total 251 | 55 196 Wait . | . . Move 153 | 39 114 Hop . | . . Pick Up 16 | 10 6 Fast Attach . | . . Attach 13 | 6 7 Detach . | . . Swap . | . . Drop 2 | . 2 Fire 65 | . 65 Melee . | . . Ram . | . . Kick 2 | . 2 Crush . | . . Escape Stasis . | . . Rewire . | . . Trap . | . . Miscellaneous . | . . Route ------- -11/Scrapyard -10/Materials History --------- Turn | Location | Event 6 | -11/Scrapyard | Discovered new exit (range 13) 53 | -11/Scrapyard | Entered Materials 303 | -10/Materials | Build established: Mutant 363 | -10/Materials | Core integrity fell below 50% 395 | -10/Materials | Lost 4 parts (1p2n1w) 402 | -10/Materials | Core integrity fell below 20% 432 | -10/Materials | Destroyed by G-34 Mercenary with Small Laser Last Messages --------------- 00388_ G-34 Mercenary destroyed. 00389_ Acquired 1 matter. 00389_ K-01 Serf collects debris. 00389_ R-06 Scavenger collects Ion Engine. 00391_ Acquired 1 matter. 00393_ K-01 Serf collects debris. 00393_ R-06 Scavenger collects Heat Sink. 00394_ Acquired 1 matter. 00397_ K-01 Serf collects debris. 00397_ W-16 Scout sends out distress signal. 00398_ Acquired 1 matter. 00405_ Acquired 10 matter. 00405_ Dropped Aluminum Leg. 00407_ Acquired 1 matter. 00407_ M-13 Machinist repairs G-34 Mercenary. 00414_ R-06 Scavenger collects Aluminum Leg. 00420_ Lgt. Assault Rifle destroyed. 00426_ G-47 Trooper suffers critical hit (Destroy). 00426_ Destroyed Lgt. Nuclear Core. Map ----- +----------------------------------------------------+ | ?????????????????????????????????????????????????? | | ?????????????????????????????????????????????????? | | ?????????????????????????????????????????????????? | | ?????????????????????????????????????????????????? | | ?????????????????????????????????????????????????? | | ?????????????????????????????????????????????????? | | ?????????????????????????????????????????????????? | | ?????????????????????????????????????????????????? | | ?????????????????????????????????????????????????? | | ?????????????????????????????????????????????????? | | ?????????????????????? ??????????????????????????? | | ?????????????????????? ??????????????????????????? | | ?????????????????????? ??????????????????????????? | | ?????????????????????? ?????????????????????????? | | ?????????????????????? ?????????????????????????? | | ?????????????????????? ?????????????????????????? | | ??????????????????????# ?????????????????????????? | | ??????????????????????# ?????????????????????????? | | ??????????????????????# ?????????????????????????? | | ??????????????????????# ?????????????????????????? | | ??????????????????????# #????????????????????????? | | ??????????????????????# ###???? #???????????????? | | ??????????????????????# #??"" #???????????????? | | ??????????????????????# # """ #???????????????? | | ??###############?????# +^""" #???????????????? | | ??# #?????# @# #?? ??????????? | | ??# #?????# %g######## |?????????? | | ??#"" """ """ ####### % ????????? | | ??#"T """"""""" +% g % ????????? | | ??#"" """"" " ####### ????????? | | ??# *% #?????# ===?????????? | | ??#######+#######?????# ===?????????? | | ######## #??????????# ===?????????? | | # #??????????# """ ??????????? | | + #??????????#u """"" ??????????? | | # #??????????# """"" ???????????? | | ########% #??????????# """"" ???????????? | | ?# = #??????????# ""??? ???????????? | | ?# * #??????????+ ????? ????????????? | | ?# """ #??????????# ??????? ?????????????? | | ?# """ #??????????# ???????????????????????? | | ?# """ #??????????# ???????????????????????? | | ### #??????????# ???????????????????????? | | # #??????????? ???????????????????????? | | / #??????????? ???????????????????????? | | # """ #??????????? ???????????????????????? | | # """ #?????????????????????????????????????? | | ### """ #?????????????????????????????????????? | | ??# """ #?????????????????????????????????????? | | ??# #?????????????????????????????????????? | +----------------------------------------------------+ Best States ------------- Heat Dissipation 25 Energy Generation 10 Energy Capacity 250 Matter Stores 300 Matter Capacity 300 Sight Range 16 Terrain Scan Density 10 Evasion (%) 55 Targeting Accuracy 5 Recoil Reduction 2 Item Schematics ----------------- None Robot Schematics ------------------ None Fabricated ------------ Nothing Alien Tech Used ----------------- None Achievements -------------- None Challenges ------------ None Game ------ Seed ConstructUtilityPenetrator Manual? 0 Play Time 00:06:16 Cumulative 4.3 hours Start 2024.03.31 @ 21:06:40 End 2024.03.31 @ 21:12:16 Sessions 1 Manual Loads 0 Difficulty Rogue Special Mode None Game No. 6 Rogue 6 Adventurer 0 Explorer 0 Win Type - Total 0 Types 0/0/0/0/0/0/0/0/0 Lore% 5 Gallery% 14 Achievement% 11 Wizard Run 0 Options --------- Layout 1 ASCII 0 Keyboard 0 Movement Mouse Keybinds 0 Fullscreen 1 Font 24/Smallcaps Map View 50x35 Zoom Use 0% Tactical HUD 1 Map Filters NONE Filters NONE Steam 1 RUN: 5718e44a-5f9e-4eb9-a9d6-ca0faf2251e7